{"text_format":"1","workbook":"xlsx","n_sheets":9,"sheets":["表紙","基本情報・事業所情報の作成","届出・申告書の作成","ETL","LIST","eAppData","【自動入力】様式第21","【自動入力】様式第22","【自動入力】Form4.1"],"not_rendered":{"charts":0,"images":0,"macros":1,"external_links":0,"defined_names":23,"comments":0,"pivot_tables":0},"unopened":[],"bounds":{"document_bytes":16777216,"sheet_cells":100000,"rows_first":2000,"rows_last":500,"rows_between":2000,"halvings":0,"cell_chars":16384,"cell_head_chars":4096},"cells_cut":0,"cells_raw":0,"read":"whole","date_system":"1900"}

{"sheet":"表紙","index":0,"n_rows":42,"n_cols":27,"rows_kept":42,"cut":false,"hidden":false,"merged":[[18,3,18,13],[21,3,21,16],[17,3,17,13],[20,3,20,26],[1,1,1,26],[2,2,2,25],[4,1,4,26],[10,3,10,10],[13,3,13,10],[38,3,38,17],[28,11,28,17],[41,3,41,7],[23,3,23,26],[29,3,29,26],[32,3,32,26],[33,2,33,26],[24,11,24,26],[26,3,26,26]]}
[null,"Version","2.0.0",null,null,null,null,null,null,null,null,null,null,null,null,null,null,null,null,null,null,null,null,null,null,null,"様式改訂：2023/08/02"]
[null,"化兵法に基づく有機化学物質（DOC）および特定有機化学物質（PSF）の実績届出\n（様式第２１／様式第２２）および申告書の作成"]
[null,null,"(※）国際機関に申告するための書面では、化学兵器禁止法の「有機化学物質」は化学兵器禁止条約では「DOC（Discrete Organic Chemicals)」、「特定有機化学物質（有機化学物質のうち、りん（P)、硫黄（S）またはふっ素（F)を含むもの）」は「PSF」との用語となっています。"]
[]
[null,"有機化学物質／特定有機化学物質を製造する事業者は当該活動の実績を経済産業大臣に届け出ることになっています。また、併せて、国際機関に申告するための書面（Form）を提出することとされています。有機化学物質（DOC）、特定有機化学物質（PSF）の実績届出（様式第２１／様式第２２）および申告書の作成に必要な情報を入力して届出書・申告書を作成してください。"]
[]
[]
[null,"届出・申告書の作成・提出手順"]
[]
[null,null,"①","「基本情報・事業所情報の作成」シートで届出する基本情報と事業所情報を入力してください。"]
[null,null,null,"基本情報・事業所情報の入力へ→　"]
[]
[null,null,"②","「届出・申告書の作成」シートで届出・申告する情報を入力してください。"]
[null,null,null,"届出・申告書の情報の入力へ→　"]
[]
[null,null,"③","「【自動入力】様式第２１」「【自動入力】様式第２２」シートで届出の内容を確認してください。"]
[null,null,null,"修正が必要な場合は、①または②のシートに入力された情報を修正してください。"]
[null,null,null,"【自動入力】様式第２１へ→"]
[null,null,null,"【自動入力】様式第２２へ→"]
[]
[null,null,"④","「【自動入力】Form4.1」シートで申告の内容を確認してください。修正が必要な場合は、①または②のシートに入力された情報を修正してください。なお、届出のみの場合は当該Formシートの表示内容がなくなります。"]
[null,null,null,"【自動入力】Form4.1　DOC/PSF生産実績量の申告へ→"]
[]
[null,null,"⑤","エクセルファイルを保存してください。なお、ファイルの名称はわかりやすいように変更していただいてかまいませんが、ファイル名先頭の３文字（「Y21」）は変更しないでください（\"21\"は届出様式番号２桁を示しており（実際は届出様式第21、第22及び国際申告Form4.1の情報を含みます）、当該文字列がないと電子申請が受理されません。）。また、e-Govでは一部の記号文字をファイル名に使うことができません（例：“-”、“_”等。詳細は以下のe-Gov電子申請ウェブサイトを参照ください）。"]
[null,null,null,null,"ファイル名に使用できる文字：",null,null,null,null,null,null,"https://shinsei.e-gov.go.jp/contents/help/notes/filename-letters.html"]
[]
[null,null,"⑥","保存された電子申請用エクセルファイルと添付資料（必要に応じて変更点のメモや委任状等）をe-Gov電子申請ウェブサイトから電子申請します。"]
[]
[null,null,null,null,"e-Gov電子申請ウェブサイト：",null,null,null,null,null,null,"https://shinsei.e-gov.go.jp/"]
[null,null,null,"※ご不明な点などございましたら、下記「参考情報」欄の経済産業省ウェブサイトをご参照ください。"]
[]
[null,"注意事項"]
[]
[null,null,"・当該ファイルはマクロ機能を利用しておりますため、マクロ機能を有効に（「コンテンツの有効化」）していただけますようお願いいたします。\n・入力欄のコピー＆ペーストは行わないようにお願いいたします（セルの構造が壊れてしまいますため）。\n・上記①（「基本情報・事業所情報の作成」）及び②（「届出・申告書の作成」）のシートにつきましては、一番右の列（Ｘ列）に自動入力チェック欄がございます。その欄に「未入力」と表示されている箇所がございましたら、同じ行の情報をご入力いただけますようお願いいたします。"]
[]
[null,"参考情報"]
[]
[null,null,"○経済産業省ウェブサイト（化学兵器禁止法　届出・申告関係）"]
[null,null,null,"https://www.meti.go.jp/policy/chemical_management/cwc/todokede.html"]
[]
[null,null,"○gビズID（e-Gov他様々な行政サービスにログインできるサービス）"]
[null,null,null,"https://gbiz-id.go.jp/top/"]

{"sheet":"基本情報・事業所情報の作成","index":1,"n_rows":120,"n_cols":24,"rows_kept":120,"cut":false,"hidden":false,"merged":[[119,21,119,22],[108,1,118,5],[108,6,108,20],[109,21,109,22],[113,21,113,22],[114,21,114,22],[115,21,115,22],[116,21,116,22],[117,21,117,22],[118,21,118,22],[94,3,100,10],[94,21,94,22],[95,21,95,22],[96,21,96,22],[97,21,97,22],[98,21,98,22],[99,21,99,22],[100,21,100,22],[87,3,93,10],[87,21,87,22],[88,21,88,22],[89,21,89,22],[90,21,90,22],[91,21,91,22],[92,21,92,22],[93,21,93,22],[80,3,86,10],[80,21,80,22],[81,21,81,22],[82,21,82,22],[83,21,83,22],[84,21,84,22],[85,21,85,22],[86,21,86,22],[69,3,76,10],[69,21,69,22],[70,21,70,22],[71,21,71,22],[72,21,72,22],[73,21,73,22],[74,21,74,22],[75,21,75,22],[76,21,76,22],[61,3,68,10],[61,21,61,22],[62,21,62,22],[63,21,63,22],[64,21,64,22],[65,21,65,22],[66,21,66,22],[67,21,67,22],[68,21,68,22],[26,2,26,21],[40,3,40,6],[40,8,40,9],[40,11,40,12],[43,3,43,6],[43,8,43,9],[43,11,43,12],[47,21,47,22],[48,21,48,22],[49,21,49,22],[53,3,60,10],[53,21,53,22],[54,21,54,22],[55,21,55,22],[56,21,56,22],[57,21,57,22],[58,21,58,22],[59,21,59,22],[60,21,60,22],[11,3,11,6],[11,7,11,21],[24,2,24,22],[1,1,1,23],[3,2,3,22],[6,3,6,6],[6,7,6,21],[7,7,7,21],[8,7,8,22],[9,3,9,6],[9,7,9,21],[10,7,10,22]]}
[null,null,null,null,null,null,null,null,null,null,null,null,null,null,null,null,null,null,null,null,null,null,null,"様式改訂：2023/08/02"]
[null,"化兵法に基づく届出および申告書の基本情報・事業所情報"]
[]
[null,null,"基本情報・事業所情報の作成シートでは、化兵法に基づく届出および申告書の基本情報と事業所情報を入力してください。"]
[]
[]
[null,null,null,"ピンク",null,null,null," の部分は、入力必須です。"]
[]
[]
[null,null,null,"ブルー",null,null,null," の部分は、設問項目に該当しない場合は、入力不要（空欄可）です。"]
[]
[null,null,null,"グレー",null,null,null," の部分は、入力不要です。"]
[]
[]
[]
[]
[]
[]
[]
[]
[]
[]
[null,"過去または他の化兵法届出で作成した基本情報・事業所情報を自動で転記することができます。"]
[]
[null,null,"①化兵法の届出エクセルファイルを指定してください。（「ファイル選択…」ボタン）\n②「取込」ボタンをクリックすると、「基本情報・事業所情報の作成」「届出・申告書の作成」シートに入力した内容が各シートに転記されます。\n※既に入力済の項目は上書きされますのでご注意ください。(念のため、このファイルのバックアップを取ってから実行することをお勧めします。）"]
[null,null,"転記元ファイル："]
[]
[]
[]
[]
[]
[]
[]
[]
[]
[]
[]
[null,"基本情報を入力してください。"]
[]
[null,"１．届出日を西暦で入力してください。（例：2024年2月15日）",null,null,null,null,null,null,null,null,null,null,null,null,null,null,null,null,null,null,null,null,null,"自動入力チェック"]
[null,null,null,null,null,null,null,null,null,null,"月",null,null,"日",null,null,null,null,null,null,null,null,null,{"$f":"IF(OR($D41=\"\",$I41=\"\",$L41=\"\"),\"未入力\",\"\")","v":"未入力"}]
[]
[null,"２．届出対象年を西暦４桁で入力してください。（例：2024年2月に届出される前年分の実績届出では、”2023年”が届出対象年となりますので、”2023”を入力します）",null,null,null,null,null,null,null,null,null,null,null,null,null,null,null,null,null,null,null,null,null,"自動入力チェック"]
[null,null,null,null,null,null,null,"年",null,null,null,null,null,null,null,null,null,null,null,null,null,null,null,{"$f":"IF($D44=\"\",\"未入力\",\"\")","v":"未入力"}]
[null,"３．届出者の情報を入力してください（届出者が法人代表でない場合には、届出を委任された届出者の情報（例：事業所長、工場長）を入力してください。）。"]
[null,null,null,null,null,null,null,null,null,null,null,null,null,null,null,null,null,null,null,null,null,"日本語","英語","自動入力チェック"]
[null,null,null,"氏名または名称",null,null,null,null,null,null,null,null,null,null,null,null,null,null,null,null,null,null,null,{"$f":"FormOnlyAutoChk(届出のみ判定,$V47,$W47, TRUE)","v":"未入力"}]
[null,null,null,"法人にあっては、\nその代表者の役職",null,null,null,null,null,null,null,null,null,null,null,null,null,null,null,null,null,null,null,""]
[null,null,null,"法人にあっては、\nその代表者の氏名",null,null,null,null,null,null,null,null,null,null,null,null,null,null,null,null,null,null,null,""]
[null,null,null,"住所",null,null,null,null,null,null,null,null,null,null,null,null,null,null,null,null,null,null,null,{"$f":"IF($V50=\"\",\"未入力\",\"\")","v":"未入力"}]
[]
[]
[null,"４．届出関係担当者の情報を入力してください。",null,null,null,null,null,null,null,null,null,null,null,null,null,null,null,null,null,null,null,"日本語",null,"自動入力チェック"]
[null,null,null,"担当者の情報①",null,null,null,null,null,null,null,"氏名",null,null,null,null,null,null,null,null,null,null,null,{"$f":"IF($V54=\"\",\"未入力\",\"\")","v":"未入力"}]
[null,null,null,null,null,null,null,null,null,null,null,"郵便番号",null,null,null,null,null,null,null,null,null,null,null,""]
[null,null,null,null,null,null,null,null,null,null,null,"住所",null,null,null,null,null,null,null,null,null,null,null,""]
[null,null,null,null,null,null,null,null,null,null,null,"部署名",null,null,null,null,null,null,null,null,null,null,null,""]
[null,null,null,null,null,null,null,null,null,null,null,"役職",null,null,null,null,null,null,null,null,null,null,null,""]
[null,null,null,null,null,null,null,null,null,null,null,"電話番号",null,null,null,null,null,null,null,null,null,null,null,{"$f":"IF($V59=\"\",\"未入力\",\"\")","v":"未入力"}]
[null,null,null,null,null,null,null,null,null,null,null,"FAX番号",null,null,null,null,null,null,null,null,null,null,null,""]
[null,null,null,null,null,null,null,null,null,null,null,"メールアドレス",null,null,null,null,null,null,null,null,null,null,null,{"$f":"IF($V61=\"\",\"未入力\",\"\")","v":"未入力"}]
[null,null,null,"担当者の情報②",null,null,null,null,null,null,null,"氏名",null,null,null,null,null,null,null,null,null,null,null,""]
[null,null,null,null,null,null,null,null,null,null,null,"郵便番号",null,null,null,null,null,null,null,null,null,null,null,""]
[null,null,null,null,null,null,null,null,null,null,null,"住所",null,null,null,null,null,null,null,null,null,null,null,""]
[null,null,null,null,null,null,null,null,null,null,null,"部署名",null,null,null,null,null,null,null,null,null,null,null,""]
[null,null,null,null,null,null,null,null,null,null,null,"役職",null,null,null,null,null,null,null,null,null,null,null,""]
[null,null,null,null,null,null,null,null,null,null,null,"電話番号",null,null,null,null,null,null,null,null,null,null,null,""]
[null,null,null,null,null,null,null,null,null,null,null,"FAX番号",null,null,null,null,null,null,null,null,null,null,null,""]
[null,null,null,null,null,null,null,null,null,null,null,"メールアドレス",null,null,null,null,null,null,null,null,null,null,null,""]
[null,null,null,"担当者の情報③",null,null,null,null,null,null,null,"氏名",null,null,null,null,null,null,null,null,null,null,null,""]
[null,null,null,null,null,null,null,null,null,null,null,"郵便番号",null,null,null,null,null,null,null,null,null,null,null,""]
[null,null,null,null,null,null,null,null,null,null,null,"住所",null,null,null,null,null,null,null,null,null,null,null,""]
[null,null,null,null,null,null,null,null,null,null,null,"部署名",null,null,null,null,null,null,null,null,null,null,null,""]
[null,null,null,null,null,null,null,null,null,null,null,"役職",null,null,null,null,null,null,null,null,null,null,null,""]
[null,null,null,null,null,null,null,null,null,null,null,"電話番号",null,null,null,null,null,null,null,null,null,null,null,""]
[null,null,null,null,null,null,null,null,null,null,null,"FAX番号",null,null,null,null,null,null,null,null,null,null,null,""]
[null,null,null,null,null,null,null,null,null,null,null,"メールアドレス",null,null,null,null,null,null,null,null,null,null,null,""]
[]
[]
[null,"５．国際検査対応関係担当者の情報を入力してください。",null,null,null,null,null,null,null,null,null,null,null,null,null,null,null,null,null,null,null,"日本語",null,"自動入力チェック"]
[null,null,null,"担当者の情報①",null,null,null,null,null,null,null,"氏名",null,null,null,null,null,null,null,null,null,null,null,{"$f":"FormOnlyAutoChk(届出のみ判定,$V81,\"\", FALSE)","v":"未入力"}]
[null,null,null,null,null,null,null,null,null,null,null,"住所",null,null,null,null,null,null,null,null,null,null,null,""]
[null,null,null,null,null,null,null,null,null,null,null,"部署名",null,null,null,null,null,null,null,null,null,null,null,""]
[null,null,null,null,null,null,null,null,null,null,null,"役職",null,null,null,null,null,null,null,null,null,null,null,""]
[null,null,null,null,null,null,null,null,null,null,null,"電話番号",null,null,null,null,null,null,null,null,null,null,null,{"$f":"FormOnlyAutoChk(届出のみ判定,$V85,\"\", FALSE)","v":"未入力"}]
[null,null,null,null,null,null,null,null,null,null,null,"FAX番号",null,null,null,null,null,null,null,null,null,null,null,""]
[null,null,null,null,null,null,null,null,null,null,null,"メールアドレス",null,null,null,null,null,null,null,null,null,null,null,{"$f":"FormOnlyAutoChk(届出のみ判定,$V87,\"\", FALSE)","v":"未入力"}]
[null,null,null,"担当者の情報②",null,null,null,null,null,null,null,"氏名",null,null,null,null,null,null,null,null,null,null,null,""]
[null,null,null,null,null,null,null,null,null,null,null,"住所",null,null,null,null,null,null,null,null,null,null,null,""]
[null,null,null,null,null,null,null,null,null,null,null,"部署名",null,null,null,null,null,null,null,null,null,null,null,""]
[null,null,null,null,null,null,null,null,null,null,null,"役職",null,null,null,null,null,null,null,null,null,null,null,""]
[null,null,null,null,null,null,null,null,null,null,null,"電話番号",null,null,null,null,null,null,null,null,null,null,null,""]
[null,null,null,null,null,null,null,null,null,null,null,"FAX番号",null,null,null,null,null,null,null,null,null,null,null,""]
[null,null,null,null,null,null,null,null,null,null,null,"メールアドレス",null,null,null,null,null,null,null,null,null,null,null,""]
[null,null,null,"担当者の情報③",null,null,null,null,null,null,null,"氏名",null,null,null,null,null,null,null,null,null,null,null,""]
[null,null,null,null,null,null,null,null,null,null,null,"住所",null,null,null,null,null,null,null,null,null,null,null,""]
[null,null,null,null,null,null,null,null,null,null,null,"部署名",null,null,null,null,null,null,null,null,null,null,null,""]
[null,null,null,null,null,null,null,null,null,null,null,"役職",null,null,null,null,null,null,null,null,null,null,null,""]
[null,null,null,null,null,null,null,null,null,null,null,"電話番号",null,null,null,null,null,null,null,null,null,null,null,""]
[null,null,null,null,null,null,null,null,null,null,null,"FAX番号",null,null,null,null,null,null,null,null,null,null,null,""]
[null,null,null,null,null,null,null,null,null,null,null,"メールアドレス",null,null,null,null,null,null,null,null,null,null,null,""]
[]
[]
[]
[]
[null,"届出を行う事業所の情報を入力してください。"]
[]
[null,null,null,null,null,null,null,null,null,null,null,null,null,null,null,null,null,null,null,null,null,"日本語","英語","自動入力チェック"]
[null,"製造をした事業所の情報",null,null,null,null,"事業所の名称（「会社名 事業所名」で入力）",null,null,null,null,null,null,null,null,null,null,null,null,null,null,null,null,{"$f":"FormOnlyAutoChk(届出のみ判定,$V109,$W109, TRUE)","v":"未入力"}]
[null,null,null,null,null,null,"事業所コード",null,null,null,null,null,null,null,null,null,null,null,null,null,null,null,null,{"$f":"IF($V110=\"\",\"未入力\",\"\")","v":"未入力"}]
[null,null,null,null,null,null,"所在地",null,null,null,null,"都道府県",null,null,null,null,null,null,null,null,null,null,{"$f":"IF(V111=\"\", \"\", IF(eAppData!$B$17<=0,\"\",VLOOKUP(V111, LIST!B5:D51, 3, FALSE)))","v":""},{"$f":"FormOnlyAutoChk(届出のみ判定,$V111,$W111, TRUE)","v":"未入力"}]
[null,null,null,null,null,null,null,null,null,null,null,"市／区／郡",null,null,null,null,null,null,null,null,null,null,null,{"$f":"FormOnlyAutoChk(届出のみ判定,$V112,$W112, TRUE)","v":"未入力"}]
[null,null,null,null,null,null,null,null,null,null,null,"町村および番地",null,null,null,null,null,null,null,null,null,null,null,{"$f":"FormOnlyAutoChk(届出のみ判定,$V113,$W113, TRUE)","v":"未入力"}]
[null,null,null,null,null,null,null,null,null,null,null,"緯度",null,null,"度",null,null,null,null,null,null,null,null,{"$f":"FormOnlyAutoChk(届出のみ判定,$V114,\"\", FALSE)","v":"未入力"}]
[null,null,null,null,null,null,null,null,null,null,null,null,null,null,"分",null,null,null,null,null,null,null,null,"未入力"]
[null,null,null,null,null,null,null,null,null,null,null,null,null,null,"秒",null,null,null,null,null,null,null,null,"未入力"]
[null,null,null,null,null,null,null,null,null,null,null,"経度",null,null,"度",null,null,null,null,null,null,null,null,"未入力"]
[null,null,null,null,null,null,null,null,null,null,null,null,null,null,"分",null,null,null,null,null,null,null,null,"未入力"]
[null,null,null,null,null,null,null,null,null,null,null,null,null,null,"秒",null,null,null,null,null,null,null,null,"未入力"]
[null,"事業所についての追加的情報（英語で入力）",null,null,null,null,null,null,null,null,null,null,null,null,null,null,null,null,null,null,null,null,null,""]

{"sheet":"届出・申告書の作成","index":2,"n_rows":60,"n_cols":24,"rows_kept":60,"cut":false,"hidden":false,"merged":[[8,7,8,22],[9,3,9,6],[9,7,9,21],[10,7,10,22],[1,1,1,23],[3,2,3,22],[6,3,6,6],[6,7,6,21],[7,7,7,21],[28,1,44,2],[44,4,44,8],[44,9,44,14],[44,15,44,20],[11,3,11,6],[11,7,11,21],[37,11,37,20],[38,11,38,20],[39,11,39,20],[32,6,36,10],[32,11,32,20],[33,11,33,20],[31,6,31,20],[18,21,18,22],[37,6,41,10],[41,11,41,20],[28,3,29,5],[28,6,28,20],[29,6,29,20],[30,6,30,20],[40,11,40,20],[32,3,43,5],[34,11,34,20],[35,11,35,20],[36,11,36,20],[42,6,42,20],[43,6,43,20],[45,4,45,19],[46,5,46,19],[47,5,47,19],[57,2,57,23],[58,2,58,23]]}
[null,null,null,null,null,null,null,null,null,null,null,null,null,null,null,null,null,null,null,null,null,null,null,"様式改訂：2023/08/02"]
[null,"化兵法に基づく有機化学物質（DOC）および特定有機化学物質（PSF）の実績届出\n(様式第２１／様式第２２）および申告書の作成"]
[]
[]
[]
[]
[null,null,null,"ピンク",null,null,null," の部分は、入力必須です。"]
[]
[]
[null,null,null,"ブルー",null,null,null," の部分は、設問項目に該当しない場合は、入力不要（空欄可）です。"]
[]
[null,null,null,"グレー",null,null,null," の部分は、入力不要です。"]
[]
[]
[]
[null,"前回の届出、申告内容から変更がある場合には、変更内容を入力してください。（入力誤り／真に変更された点のどちらかを判別するため）"]
[null,"また、届出内容について、特記すべき事項がもしあれば入力してください。"]
[]
[null,null,null,"前回の届出、申告内容からの変更点および届出内容についての特記事項"]
[]
[null,"活動の内容と規模を入力してください。"]
[]
[null,null,"〇",null,"：前年に製造した有機化学物質（DOC）（PSFも含む。）の数量が200トン超か（200トン超の場合、○を選択）　←初めに選択してください。"]
[]
[null,null,"〇",null,"：前年に製造した特定有機化学物質（PSF）の数量が30トン超か（30トン超の場合、○を選択）←初めに選択してください。"]
[]
[]
[null,null,null,null,null,null,null,null,null,null,null,null,null,null,null,null,null,null,null,null,null,"日本語",null,"自動入力チェック"]
[null,"事業所において製造した物質",null,"DOC製造施設数、生産量",null,null,"事業所内の有機化学物質の製造施設の数",null,null,null,null,null,null,null,null,null,null,null,null,null,null,null,null,{"$f":"IF(AND($C$23=\"〇\", $V$29=\"\"),\"未入力\",\"\")","v":"未入力"}]
[null,null,null,null,null,null,"事業所において製造をした全ての有機化学物質の総量が属する区分（PSFも含む）",null,null,null,null,null,null,null,null,null,null,null,null,null,null,null,null,{"$f":"IF(AND($C$23=\"〇\",$V$30=\"\"),\"未入力\",\"\")","v":"未入力"}]
[null,null,null,null,null,null,"和文の様式の提出のみで十分ですか？\n（英文の申告Form4.1の提出は不要ですか？）",null,null,null,null,null,null,null,null,null,null,null,null,null,null,"いいえ",null,{"$f":"IF(AND($C$23=\"〇\",$V$31=\"\"),\"未入力\",\"\")","v":""}]
[null,null,null,null,null,null,"英文Form4.1の提出が不要である場合、その理由を選択してください",null,null,null,null,null,null,null,null,null,null,null,null,null,null,"－",null,{"$f":"IF(AND($C$23=\"〇\",OR($V32=\"\", $V32=LIST!$I$5), $V31=LIST!$R$6 ),\"未入力\",\"\")","v":""}]
[null,null,null,"PSF生産量ごとの施設数\n",null,null,"届出用\n(様式第22)\n\n※事業所ごとで特定有機化学物質総製造量が30tを超えた場合、届出が必要",null,null,null,null,"30トン未満"]
[null,null,null,null,null,null,null,null,null,null,null,"30トン超~200トン未満"]
[null,null,null,null,null,null,null,null,null,null,null,"200トン以上~1,000トン未満"]
[null,null,null,null,null,null,null,null,null,null,null,"1,000トン以上~10,000トン以下"]
[null,null,null,null,null,null,null,null,null,null,null,"10,000トン超"]
[null,null,null,null,null,null,"申告用(Form4.1)\n\n※PSF物質ごと/プラントごとでPSF生産量が30tを超えた場合、申告が必要",null,null,null,null,"30トン超~200トン未満"]
[null,null,null,null,null,null,null,null,null,null,null,"200トン以上~1,000トン未満"]
[null,null,null,null,null,null,null,null,null,null,null,"1,000トン以上~10,000トン以下"]
[null,null,null,null,null,null,null,null,null,null,null,"10,000トン超"]
[null,null,null,null,null,null,null,null,null,null,null,"1種類につき200トンを超えて生産した特定有機化学物質の有無",null,null,null,null,null,null,null,null,null,null,null,{"$f":"IF($V$43=\"はい\",\"\",IF(AND($C$25=\"〇\", $V$42=\"\"),\"未入力\",\"\"))","v":"未入力"}]
[null,null,null,null,null,null,"和文の様式の提出のみで十分ですか？\n（英文の申告Form4.1の提出は不要ですか？）",null,null,null,null,null,null,null,null,null,null,null,null,null,null,"いいえ",null,{"$f":"IF(AND($C$25=\"〇\", $V$43=\"\"),\"未入力\",\"\")","v":""}]
[null,null,null,null,null,null,"英文Form4.1の提出が不要である場合、その理由を選択してください",null,null,null,null,null,null,null,null,null,null,null,null,null,null,"－",null,{"$f":"IF(AND($C$25=\"〇\", OR($V44=\"\", $V44=LIST!$L$5), $V43=LIST!$R$6 ),\"未入力\",\"\")","v":""}]
[null,null,null,null,{"$f":"HYPERLINK(\"https://www.meti.go.jp/policy/chemical_management/cwc/files/hyo4.pdf\",CHAR(10)&CHAR(10)&CHAR(10)&\"〇附表４_製品\"&CHAR(10)&\"分類コード\")","v":"\n\n\n〇附表４_製品\n分類コード"},null,null,null,null,{"$f":"HYPERLINK(\"https://www.meti.go.jp/policy/chemical_management/cwc/files/todokede_sankou.pdf#page=51\",CHAR(10)&CHAR(10)&CHAR(10)&\"〇届出参考\"&CHAR(10)&\"資料集（5.3.8）\")","v":"\n\n\n〇届出参考\n資料集（5.3.8）"},null,null,null,null,null,"\n\n\n\n※左記の経済産業省ウェブサイトにて製品分類コードの一覧およびコードの選択方法（届出参考資料集5.3.8）もご参照ください。",null,null,null,null,null,{"$f":"IF(V46=\"\",\"\",V46)","v":""},null,{"$f":"IF(AND(OR(AND($C$23=\"〇\", $V$31=\"いいえ\"), AND($C$25=\"〇\", $V$43=\"いいえ\")), $V$45=\"\"), \"未入力\", \"\")","v":"未入力"}]
[]
[]
[]
[]
[]
[]
[]
[]
[null,"（入力／提出用簡易チェックリスト）"]
[null,"□","報告内容は暦年（1月～12月）となっていますか。"]
[null,"□","オリゴマー、ポリマーや、その製造工程における化学反応に合成反応を含まないもの、発酵により合成されるもの、原料が天然物由来のものは除かれていますか。"]
[null,"□","製造量は純分換算で算出していますか。"]
[null,"□","事業所内で製造したDOC／PSF（特定有機化学物質）を原料として、別の施設でDOC／PSFを製造した場合、ひとつめの施設で製造されたDOC／PSFの製造量は、事業所での製造数量に含まれていますか。"]
[null,"□","ポリマー等届出対象外の物質の中間体としてDOC／PSFを製造した場合、その製造量は事業所での製造総量に含まれていますか。（詳しくはホームページの”届出参考資料集”を参照してください。）"]
[null,"□","（代表者でない方による届出の場合）委任状を添付しましたか。"]

{"sheet":"ETL","index":3,"n_rows":121,"n_cols":19,"rows_kept":121,"cut":false,"hidden":true,"merged":[[1,0,1,3],[11,0,18,0],[19,0,26,0],[27,0,34,0],[35,0,41,0],[78,0,78,3],[94,2,94,3],[42,0,48,0],[49,0,55,0],[57,0,57,3],[61,0,72,0],[75,0,75,3]]}
["基本情報"]
["項目",null,null,null,"値",null,"データ変換","値"]
["届出日","年",null,null,{"$f":"基本情報・事業所情報の作成!$D$41","v":0},null,"届出年月日",{"$f":"CONCATENATE($E$3, TEXT($E$4,\"00\"), TEXT($E$5,\"00\"))","v":"00000"}]
[null,"月",null,null,{"$f":"基本情報・事業所情報の作成!$I$41","v":0},null,null,{"$f":"CONCATENATE(TEXT($H$5,\"ggge年\"), \"(\", $E$3, ,\"年)\",$E$4,\"月\",$E$5,\"日\")","v":{"$error":"#NUM!"}}]
[null,"日",null,null,{"$f":"基本情報・事業所情報の作成!$L$41","v":0},null,null,{"$f":"DATE(E3,E4,E5)","v":{"$error":"#NUM!"}}]
["届出対象年",null,null,null,{"$f":"基本情報・事業所情報の作成!$D$44","v":0}]
["氏名または名称",null,null,null,{"$f":"基本情報・事業所情報の作成!$V$47&\"\"","v":""},null,"氏名、役職など結合",{"$f":"CONCATENATE(E7,IF(E9=\"\",\"\",CONCATENATE(\" \",E9)),IF(E10=\"\",\"\",CONCATENATE(\" \",E10)))","v":""}]
["氏名または名称（英語）",null,null,null,{"$f":"基本情報・事業所情報の作成!$W$47&\"\"","v":""},null,null,{"$f":"CONCATENATE(IF(E9=\"\",\"\",E9), IF(E10=\"\",\"\",CONCATENATE(\" \",E10)))","v":""}]
["法人にあっては、\nその代表者の役職",null,null,null,{"$f":"基本情報・事業所情報の作成!$V$48&\"\"","v":""}]
["法人にあっては、\nその代表者の氏名",null,null,null,{"$f":"基本情報・事業所情報の作成!$V$49&\"\"","v":""}]
["住所",null,null,null,{"$f":"基本情報・事業所情報の作成!$V$50&\"\"","v":""}]
["届出書関係担当者の情報①","氏名",null,null,{"$f":"基本情報・事業所情報の作成!$V$54&\"\"","v":""}]
[null,"郵便番号",null,null,{"$f":"基本情報・事業所情報の作成!$V$55&\"\"","v":""}]
[null,"住所",null,null,{"$f":"基本情報・事業所情報の作成!$V$56&\"\"","v":""}]
[null,"部署名",null,null,{"$f":"基本情報・事業所情報の作成!$V$57&\"\"","v":""}]
[null,"役職",null,null,{"$f":"基本情報・事業所情報の作成!$V$58&\"\"","v":""}]
[null,"電話番号",null,null,{"$f":"基本情報・事業所情報の作成!$V$59&\"\"","v":""}]
[null,"FAX番号",null,null,{"$f":"基本情報・事業所情報の作成!$V$60&\"\"&\"\"","v":""}]
[null,"メールアドレス",null,null,{"$f":"基本情報・事業所情報の作成!$V$61&\"\"","v":""}]
["届出書関係担当者の情報②","氏名",null,null,{"$f":"基本情報・事業所情報の作成!$V$62&\"\"","v":""}]
[null,"郵便番号",null,null,{"$f":"基本情報・事業所情報の作成!$V$63&\"\"","v":""}]
[null,"住所",null,null,{"$f":"基本情報・事業所情報の作成!$V$64&\"\"","v":""}]
[null,"部署名",null,null,{"$f":"基本情報・事業所情報の作成!$V$65&\"\"","v":""}]
[null,"役職",null,null,{"$f":"基本情報・事業所情報の作成!$V$66&\"\"","v":""}]
[null,"電話番号",null,null,{"$f":"基本情報・事業所情報の作成!$V$67&\"\"","v":""}]
[null,"FAX番号",null,null,{"$f":"基本情報・事業所情報の作成!$V$68&\"\"&\"\"","v":""}]
[null,"メールアドレス",null,null,{"$f":"基本情報・事業所情報の作成!$V$69&\"\"","v":""}]
["届出書関係担当者の情報③","氏名",null,null,{"$f":"基本情報・事業所情報の作成!$V$70&\"\"","v":""}]
[null,"郵便番号",null,null,{"$f":"基本情報・事業所情報の作成!$V$71&\"\"","v":""}]
[null,"住所",null,null,{"$f":"基本情報・事業所情報の作成!$V$72&\"\"","v":""}]
[null,"部署名",null,null,{"$f":"基本情報・事業所情報の作成!$V$73&\"\"","v":""}]
[null,"役職",null,null,{"$f":"基本情報・事業所情報の作成!$V$74&\"\"","v":""}]
[null,"電話番号",null,null,{"$f":"基本情報・事業所情報の作成!$V$75&\"\"","v":""}]
[null,"FAX番号",null,null,{"$f":"基本情報・事業所情報の作成!$V$76&\"\"&\"\"","v":""}]
[null,"メールアドレス",null,null,{"$f":"基本情報・事業所情報の作成!$V$77&\"\"","v":""}]
["国際検査通告書関係担当者の情報①","氏名",null,null,{"$f":"基本情報・事業所情報の作成!$V$81&\"\"","v":""}]
[null,"住所",null,null,{"$f":"基本情報・事業所情報の作成!$V$82&\"\"","v":""}]
[null,"部署名",null,null,{"$f":"基本情報・事業所情報の作成!$V$83&\"\"","v":""}]
[null,"役職",null,null,{"$f":"基本情報・事業所情報の作成!$V$84&\"\"","v":""}]
[null,"電話番号",null,null,{"$f":"基本情報・事業所情報の作成!$V$85&\"\"","v":""}]
[null,"FAX番号",null,null,{"$f":"基本情報・事業所情報の作成!$V$86&\"\"","v":""}]
[null,"メールアドレス",null,null,{"$f":"基本情報・事業所情報の作成!$V$87&\"\"","v":""}]
["国際検査通告書関係担当者の情報②","氏名",null,null,{"$f":"基本情報・事業所情報の作成!$V$88&\"\"","v":""}]
[null,"住所",null,null,{"$f":"基本情報・事業所情報の作成!$V$89&\"\"","v":""}]
[null,"部署名",null,null,{"$f":"基本情報・事業所情報の作成!$V$90&\"\"","v":""}]
[null,"役職",null,null,{"$f":"基本情報・事業所情報の作成!$V$91&\"\"","v":""}]
[null,"電話番号",null,null,{"$f":"基本情報・事業所情報の作成!$V$92&\"\"","v":""}]
[null,"FAX番号",null,null,{"$f":"基本情報・事業所情報の作成!$V$93&\"\"","v":""}]
[null,"メールアドレス",null,null,{"$f":"基本情報・事業所情報の作成!$V$94&\"\"","v":""}]
["国際検査通告書関係担当者の情報③","氏名",null,null,{"$f":"基本情報・事業所情報の作成!$V$95&\"\"","v":""}]
[null,"住所",null,null,{"$f":"基本情報・事業所情報の作成!$V$96&\"\"","v":""}]
[null,"部署名",null,null,{"$f":"基本情報・事業所情報の作成!$V$97&\"\"","v":""}]
[null,"役職",null,null,{"$f":"基本情報・事業所情報の作成!$V$98&\"\"","v":""}]
[null,"電話番号",null,null,{"$f":"基本情報・事業所情報の作成!$V$99&\"\"","v":""}]
[null,"FAX番号",null,null,{"$f":"基本情報・事業所情報の作成!$V$100&\"\"","v":""}]
[null,"メールアドレス",null,null,{"$f":"基本情報・事業所情報の作成!$V$101&\"\"","v":""}]
["事業所情報"]
["項目",null,null,null,"値",null,"データ変換","値"]
["事業所の名称",null,null,null,{"$f":"基本情報・事業所情報の作成!$V$109&\"\"","v":""}]
["事業所の名称（英語）",null,null,null,{"$f":"基本情報・事業所情報の作成!$W$109&\"\"","v":""}]
["事業所コード",null,null,null,{"$f":"基本情報・事業所情報の作成!$V$110&\"\"","v":""}]
["所在地","都道府県",null,null,{"$f":"基本情報・事業所情報の作成!$V$111&\"\"","v":""},null,"都道府県コード",{"$f":"TEXT(IF(E62=\"\", \"\", (VLOOKUP(E62, LIST!B5:C51, 2, FALSE))), \"@\")","v":""}]
[null,"都道府県（英語）",null,null,{"$f":"基本情報・事業所情報の作成!$W$111&\"\"","v":""},null,"事業所所在地",{"$f":"CONCATENATE(E62, E64, E66)","v":""}]
[null,"市／区／郡",null,null,{"$f":"基本情報・事業所情報の作成!$V$112&\"\"","v":""}]
[null,"市／区／郡（英語）",null,null,{"$f":"基本情報・事業所情報の作成!$W$112&\"\"","v":""}]
[null,"町村および番地",null,null,{"$f":"基本情報・事業所情報の作成!$V$113&\"\"","v":""}]
[null,"町村および番地（英語）",null,null,{"$f":"基本情報・事業所情報の作成!$W$113&\"\"","v":""}]
[null,"緯度（度）",null,null,{"$f":"基本情報・事業所情報の作成!$V$114","v":0},null,"緯度経度",{"$f":"CONCATENATE(E68, \"/\", E69, \"/\", E70, \"N \", E71, \"/\", E72, \"/\", E73, \"E\")","v":"0/0/0N 0/0/0E"}]
[null,"緯度（分）",null,null,{"$f":"基本情報・事業所情報の作成!$V$115","v":0}]
[null,"緯度（秒）",null,null,{"$f":"基本情報・事業所情報の作成!$V$116","v":0}]
[null,"経度（度）",null,null,{"$f":"基本情報・事業所情報の作成!$V$117","v":0}]
[null,"経度（分）",null,null,{"$f":"基本情報・事業所情報の作成!$V$118","v":0}]
[null,"経度（秒）",null,null,{"$f":"基本情報・事業所情報の作成!$V$119","v":0}]
["事業所についての追加的情報（英語で記入）",null,null,null,{"$f":"基本情報・事業所情報の作成!$V$120&\"\"","v":""}]
["特記すべき事項"]
["項目",null,null,null,"値"]
["昨年度の届出、申告内容からの変更点および届出内容についての特記事",null,null,null,{"$f":"届出・申告書の作成!$V$19&\"\"","v":""}]
["活動の内容と規模"]
["項目",null,null,null,"値",null,"データ変換","値"]
["事業所内の有機化学物質の製造量が200トン超か（200トン超の場合、○を選択）",null,null,null,{"$f":"届出・申告書の作成!$C$23&\"\"","v":"〇"}]
["事業所内の特定有機化学物質（PSF）の製造量が30トン超か（30トン超の場合、○を選択）",null,null,null,{"$f":"届出・申告書の作成!$C$25&\"\"","v":"〇"}]
["事業所で製造している物質の情報","DOC製造施設数、生産量","事業所内の有機化学物質の製造施設の数",null,{"$f":"届出・申告書の作成!$V$29&\"\"","v":""},null,null,{"$f":"IF(E80=\"〇\",E82,\"\")","v":""},{"$f":"IFERROR(VALUE(H82),0)","v":0},{"$f":"IF(E80=\"〇\",IF(E84=\"いいえ\",E82,\"\"),IF(E82<>\"\",E82,\"\"))","v":""},{"$f":"IFERROR(VALUE(J82),0)","v":0}]
[null,null,"事業所において製造をした全ての有機化学物質の総量が属する区分（PSFも含む）",null,{"$f":"届出・申告書の作成!$V$30&\"\"","v":""},null,null,{"$f":"IF(E80=\"〇\",E83,\"\")","v":""},{"$f":"IF(H83=\"\",\"\",VLOOKUP(H83,LIST!O5:P7,2,FALSE))","v":""},"1,000トン未満",{"$f":"IF(H83=J83,\"〇\",\"\")","v":""},"1,000トン以上10,000トン以下",{"$f":"IF(H83=L83,\"〇\",\"\")","v":""},"10,000トン超",{"$f":"IF(H83=N83,\"〇\",\"\")","v":""},{"$f":"IF(H96=\"いいえ\",IF(IF(E91=\"\", 0, E91) +IF(E92=\"\", 0, E92) >0,\"〇\",\"\"),\"\")","v":""},{"$f":"IF(H84=\"いいえ\",IF(O83=\"〇\",\"B33\",IF(M83=\"〇\",\"B32\",\"B31\")),IF(P83=\"〇\",\"<B31\",\"\"))","v":"B31"}]
[null,null,"届出のみ",null,{"$f":"届出・申告書の作成!$V$31","v":"いいえ"},null,null,{"$f":"IF(E80=\"〇\",E84,\"\")","v":"いいえ"},{"$f":"IF(H84=\"\",\"\",IF(H84=LIST!$R$5,LIST!$S$5,LIST!$S$6))","v":"0"}]
[null,null,"届出のみ理由",null,{"$f":"IF(E84=FALSE,\"\",届出・申告書の作成!$V$32&\"\")","v":"－"},null,null,{"$f":"IF(E80=\"〇\",E85,\"\")","v":"－"},{"$f":"IF(H85=\"\",\"0\",VLOOKUP(H85,LIST!I5:J8,2,FALSE))","v":"0"}]
[null,"PSF生産量ごとの施設数","（その１）\n様式２２届出用","30トン未満",{"$f":"届出・申告書の作成!$V$33&\"\"","v":""},null,null,{"$f":"IF(E81=\"〇\",E86,\"\")","v":""},{"$f":"IF(H86=\"\",0,H86)+IF(H87=\"\",0,H87)&IF(H86=\"\",\"\",\"(\"&H86&\")\")","v":"0"},{"$f":"IF(I86=\"0\",\"\",I86)","v":""},null,{"$f":"IFERROR(VALUE($H86),0)","v":0}]
[null,null,null,"30トン超~200トン未満",{"$f":"届出・申告書の作成!$V$34&\"\"","v":""},null,null,{"$f":"IF(E81=\"〇\",E87,\"\")","v":""},{"$f":"TEXT(IF(H86=\"\",0,H86)+IF(H87=\"\",0,H87),\"@\")","v":"0"},{"$f":"IF(I86=\"0\",\"\",I87)","v":""},null,{"$f":"IFERROR(VALUE($I87),0)","v":0}]
[null,null,null,"200トン以上~1,000トン未満",{"$f":"届出・申告書の作成!$V$35&\"\"","v":""},null,null,{"$f":"IF(E81=\"〇\",E88,\"\")","v":""},null,null,null,{"$f":"IFERROR(VALUE($H88),0)","v":0}]
[null,null,null,"1,000トン以上~10,000トン以下",{"$f":"届出・申告書の作成!$V$36&\"\"","v":""},null,null,{"$f":"IF(E81=\"〇\",E89,\"\")","v":""},null,null,null,0]
[null,null,null,"10,000トン超",{"$f":"届出・申告書の作成!$V$37&\"\"","v":""},null,null,{"$f":"IF(E81=\"〇\",E90,\"\")","v":""},null,null,null,0]
[null,null,"（その２）\n申告書用","30トン超~200トン未満",{"$f":"届出・申告書の作成!$V$38&\"\"","v":""},null,null,{"$f":"IF(E81=\"〇\",E91,\"\")","v":""},{"$f":"IF(COUNTBLANK(E91:E94)>=4,\"\",IF((IF(H91=\"\",0,H91)+IF(H92=\"\",0,H92)+IF(H93=\"\",0,H93)+IF(H94=\"\",0,H94)) > 99, 99, IF(H91=\"\",0,H91)+IF(H92=\"\",0,H92)+IF(H93=\"\",0,H93)+IF(H94=\"\",0,H94)))","v":""},{"$f":"I91","v":""},{"$f":"IFERROR(TEXT(J91,\"@\"),\"\")","v":""},0,{"$f":"IF(E81=\"〇\",IF(E96=\"いいえ\",E91,\"\"),\"\")","v":""},{"$f":"IFERROR(VALUE(M91),0)","v":0},{"$f":"IF(E81=\"〇\",IF(E96=\"いいえ\",K91,\"\"),\"\")","v":""},{"$f":"IFERROR(VALUE(O91),0)","v":0}]
[null,null,null,"200トン以上~1,000トン未満",{"$f":"届出・申告書の作成!$V$39&\"\"","v":""},null,null,{"$f":"IF(E81=\"〇\",E92,\"\")","v":""},null,null,null,0,{"$f":"IF(E81=\"〇\",IF(E96=\"いいえ\",E92,\"\"),\"\")","v":""},{"$f":"IFERROR(VALUE(M92),0)","v":0}]
[null,null,null,"1,000トン以上~10,000トン以下",{"$f":"届出・申告書の作成!$V$40&\"\"","v":""},null,null,{"$f":"IF(E81=\"〇\",E93,\"\")","v":""},null,null,null,0,{"$f":"IF(E81=\"〇\",IF(E96=\"いいえ\",E93,\"\"),\"\")","v":""},{"$f":"IFERROR(VALUE(M93),0)","v":0}]
[null,null,null,"10,000トン超",{"$f":"届出・申告書の作成!$V$41&\"\"","v":""},null,null,{"$f":"IF(E81=\"〇\",E94,\"\")","v":""},null,null,null,0,{"$f":"IF(E81=\"〇\",IF(E96=\"いいえ\",E94,\"\"),\"\")","v":""},{"$f":"IFERROR(VALUE(M94),0)","v":0}]
[null,null,"1種類につき200トンを超えて生産した特定有機化学物質の有無",null,{"$f":"届出・申告書の作成!$V$42&\"\"","v":""},null,null,{"$f":"IF(E81=\"〇\",E95,\"\")","v":""},"有り",{"$f":"IF(H95=\"有り\",\"✓\",\"\")","v":""},"無し",{"$f":"IF(E81=\"〇\",IF(H95=\"無し\",\"✓\",\"\"),\"✓\")","v":""},{"$f":"IF(H95=\"有り\",\"Y\",\"N\")","v":"N"}]
[null,null,"届出のみ",null,{"$f":"届出・申告書の作成!$V$43","v":"いいえ"},null,null,{"$f":"IF(E81=\"〇\",E96,\"\")","v":"いいえ"},{"$f":"IF(H96=\"\",\"\",IF(H96=LIST!$R$5,LIST!$S$5,LIST!$S$6))","v":"0"}]
[null,null,"届出のみ理由",null,{"$f":"IF(E96=FALSE,\"\",届出・申告書の作成!$V$44&\"\")","v":"－"},null,null,{"$f":"IF(E81=\"〇\",E97,\"\")","v":"－"},{"$f":"IF(H97=\"\",\"0\",VLOOKUP(H97,LIST!L5:M7,2,FALSE))","v":"0"},null,null,null,null,null,null,null,null,null,{"$f":"IFERROR(INDEX($R$97:$R$102,SAMLL(IF($R$97:$R$102<>\"\",ROW($R$97:$R$102)),ROW(R97))),\"\")","v":""}]
[null,"事業所の主要な活動",null,null,{"$f":"届出・申告書の作成!$V$45&\"\"","v":""},null,null,{"$f":"IF($E98=\"\",\"\",$E98)","v":""},{"$f":"$H98","v":""},null,null,null,null,{"$f":"$H98","v":""},{"$f":"IFERROR(IF(ISBLANK(N98), \"\", N98),\"\")","v":""}]
[]
[]
[]
[]
["様式用とDB用"]
[null,"様式21","様式22"]
["届出日",{"$f":"IF($E80=\"〇\",$H4,\"\")","v":{"$error":"#NUM!"}},{"$f":"IF($E81=\"〇\",$H4,\"\")","v":{"$error":"#NUM!"}}]
["氏名または名称",{"$f":"IF($E80=\"〇\",$E7,\"\")","v":""},{"$f":"IF($E81=\"〇\",$E7,\"\")","v":""}]
["法人代表者",{"$f":"IF($E80=\"〇\",$H8,\"\")","v":""},{"$f":"IF($E81=\"〇\",$H8,\"\")","v":""}]
["住所",{"$f":"IF($E80=\"〇\",$E11,\"\")","v":""},{"$f":"IF($E81=\"〇\",$E11,\"\")","v":""}]
["事業所名称",{"$f":"IF($E80=\"〇\",$E59,\"\")","v":""},{"$f":"IF($E81=\"〇\",$E59,\"\")","v":""}]
["事業所所在地",{"$f":"IF($E80=\"〇\",$H63,\"\")","v":""},{"$f":"IF($E81=\"〇\",$H63,\"\")","v":""}]
["RelatesYear",{"$f":"IF($E80=\"〇\",$E6,\"\")","v":0},{"$f":"IF($E81=\"〇\",$E6,\"\")","v":0}]
["ReportType",{"$f":"IF($E80=\"〇\",LIST!$V$5,\"\")","v":0},{"$f":"IF($E81=\"〇\",LIST!$V$5,\"\")","v":0}]
["ReportDay",{"$f":"IF($E80=\"〇\",$H5,\"\")","v":{"$error":"#NUM!"}},{"$f":"IF($E81=\"〇\",$H5,\"\")","v":{"$error":"#NUM!"}}]
["OwnerName",{"$f":"IF($E80=\"〇\",$H7,\"\")","v":""},{"$f":"IF($E81=\"〇\",$H7,\"\")","v":""}]
["OwnerAddress",{"$f":"IF($E80=\"〇\",$E11,\"\")","v":""},{"$f":"IF($E81=\"〇\",$E11,\"\")","v":""}]
["PlantSiteName",{"$f":"IF($E80=\"〇\",$E59,\"\")","v":""},{"$f":"IF($E81=\"〇\",$E59,\"\")","v":""}]
["PlantSiteCode",{"$f":"IF($E80=\"〇\",$E61,\"\")","v":""},{"$f":"IF($E81=\"〇\",$E61,\"\")","v":""}]
["PlantSiteLocation",{"$f":"IF($E80=\"〇\",$H63,\"\")","v":""},{"$f":"IF($E81=\"〇\",$H63,\"\")","v":""}]
[]
["Form4.1"]
[{"$f":"IF(ETL!E80=\"〇\",IF(ETL!E84=\"いいえ\",1,0),0) + IF(ETL!E81=\"〇\",IF(ETL!E96=\"いいえ\",1,0),0)","v":2}]

{"sheet":"LIST","index":4,"n_rows":51,"n_cols":23,"rows_kept":51,"cut":false,"hidden":true,"merged":[[2,14,2,15],[1,1,1,2],[2,1,2,3],[3,5,3,6],[2,8,2,9],[2,11,2,12]]}
[]
[null,"英語表記の大文字（１）小文字（２）切り替えフラグコード",null,"2"]
[null,"都道府県コード",null,null,null,"共用",null,null,"NODEC_DOC",null,null,"NODEC_PSF",null,null,"GROSS_WEIGHT_TYPE",null,null,"届出・申告書の作成",null,null,null,"定数"]
[null,"値","ID","英語",null,"事業所の主要な活動",null,null,"値","ID",null,"値","ID",null,"値","ID",null,"届出のみ",null,null,null,"値","意味"]
[null,"北海道",1,"Hokkaido",null,"511_炭化水素及びそのﾊﾛｹﾞﾝ化、ｽﾙﾎﾝ化、ﾆﾄﾛ化又はﾆﾄﾛｿ化誘導体","511",null,"－","0",null,"－","0",null,"1,000トン未満","1",null,"いいえ","0"]
[null,"青森県",2,"Aomori",null,"512_ｱﾙｺｰﾙ、ﾌｪﾉｰﾙ、ﾌｪﾉｰﾙ-ｱﾙｺｰﾙ及びそれらのﾊﾛｹﾞﾝ化、ｽﾙﾎﾝ化、ﾆﾄﾛ化又はﾆﾄﾛｿ化誘導体。ただし、ｴﾀﾉｰﾙ及びﾒﾀﾉｰﾙを除く。","512",null,"炭化水素のみの生産","1",null,"物質毎/プラント毎で30t越えず","1",null,"1,000トン以上10,000トン以下","2",null,"はい","1"]
[null,"岩手県",3,"Iwate",null,"513_ｶﾙﾎﾞﾝ酸及びそれらのｴｽﾃﾙ、無水物、酸ﾊﾛｹﾞﾝ化物、過酸化物及びﾍﾟﾙｵｷｿ酸；それらのﾊﾛｹﾞﾝ化、ｽﾙﾎﾝ化、ﾆﾄﾛ化又はﾆﾄﾛｿ化誘導体及びそれらの塩","513",null,"火薬のみの生産","2",null,"その他","2",null,"10,000トン超","3"]
[null,"宮城県",4,"Miyagi",null,"514_窒素官能基化合物。ただし、尿素を除く。","514",null,"その他","3"]
[null,"秋田県",5,"Akita",null,"515_複素環式化合物(環状ｴｰﾃﾙを除く)及びｽﾙﾎﾝｱﾐﾄﾞ","515"]
[null,"山形県",6,"Yamagata",null,"516_その他の有機化学物質。ただし、ﾎﾙﾑｱﾙﾃﾞﾋﾄﾞ、ｴﾁﾙ ter-ﾌﾞﾁﾙｴｰﾃﾙ及びﾒﾁﾙ tert-ﾌﾞﾁﾙｴｰﾃﾙ(MTBE)を除く。","516"]
[null,"福島県",7,"Fukushima",null,"519_ﾒﾀﾉ-ﾙ、ｴﾀﾉｰﾙ、尿素、ﾎﾙﾑｱﾙﾃﾞﾋﾄﾞ、ｴﾁﾙ tert-ﾌﾞﾁﾙｴｰﾃﾙ(ETBE)、ﾒﾁﾙ tert-ﾌﾞﾁﾙｴｰﾃﾙ(MTBE)、ｽﾙﾎﾝ酸及び脂肪酸の塩をﾍﾞｰｽにした界面活性剤","519"]
[null,"茨城県",8,"Ibaraki",null,"522_無機化学元素、酸化物及びﾊﾛｹﾞﾝ化塩","522"]
[null,"栃木県",9,"Tochigi",null,"523_無機酸の塩及び過酸化物塩、有機及び無機配位子の金属錯体","523"]
[null,"群馬県",10,"Gunma",null,"524_有機金属化合物","524"]
[null,"埼玉県",11,"Saitama",null,"525_放射性物質及び関連物質","525"]
[null,"千葉県",12,"Chiba",null,"531_有機合成着色料及びﾚｰｷ顔料並びにこれらの調製品","531"]
[null,"東京都",13,"Tokyo",null,"532_染色、なめし抽出物及び合成なめし剤","532"]
[null,"神奈川県",14,"Kanagawa",null,"533_顔料、塗料、ﾜﾆｽ及びこれらの関連物質","533"]
[null,"新潟県",15,"Niigata",null,"541_医用及び薬用製品(第 542 類の薬剤を除く原体及び有効成分を含む)","541"]
[null,"山梨県",16,"Yamanashi",null,"542_薬剤(獣医・家畜用薬剤を含む)","542"]
[null,"長野県",17,"Nagano",null,"551_精油、香水及び香味料","551"]
[null,"静岡県",18,"Shizuoka",null,"553_香水調製品、化粧品又は洗面用調製品（石鹸を除く）","553"]
[null,"富山県",19,"Toyama",null,"554_石鹸、洗浄剤及び研磨剤調製品。ただし、ｽﾙﾎﾝ酸及び脂肪酸の塩をﾍﾞｰｽにした界面活性剤を除く。","554"]
[null,"石川県",20,"Ishikawa",null,"562_合成肥料","562"]
[null,"岐阜県",21,"Gifu",null,"571_ｴﾁﾚﾝの重合物(成型前のもの)","571"]
[null,"愛知県",22,"Aichi",null,"572_ｽﾁﾚﾝの重合物(成型前のもの)","572"]
[null,"三重県",23,"Mie",null,"573_塩化ﾋﾞﾆﾙその他のﾊﾛｹﾞﾝ化ｵﾚﾌｨﾝの重合物(成型前のもの)","573"]
[null,"福井県",24,"Fukui",null,"574_ﾎﾟﾘｱｾﾀｰﾙ、その他のﾎﾟﾘｴｰﾃﾙ及びｴﾎﾟｷｼ樹脂(成型前のもの)；ﾎﾟﾘｶｰﾎﾞﾈｰﾄ、ｱﾙｷﾄﾞ樹脂、ﾎﾟﾘｱﾘﾙｴｽﾃﾙ及びその他のﾎﾟﾘｴｽﾃﾙ","574"]
[null,"滋賀県",25,"Shiga",null,"575_その他のﾌﾟﾗｽﾁｯｸ(成型前のもの)","575"]
[null,"京都府",26,"Kyoto",null,"579_ﾌﾟﾗｽﾁｯｸの廃棄物、切り屑及び小片","579"]
[null,"大阪府",27,"Osaka",null,"581_ﾌﾟﾗｽﾁｯｸのﾁｭｰﾌﾞ、ﾊﾟｲﾌﾟ及びﾎｰｽ並びにその附属品","581"]
[null,"兵庫県",28,"Hyogo",null,"582_ﾌﾟﾗｽﾁｯｸの板、ｼｰﾄ、薄膜、箔及び小片","582"]
[null,"奈良県",29,"Nara",null,"583_ﾌﾟﾗｽﾁｯｸ単繊維(断面直径が1 mmを超えるもの)、ﾌﾟﾗｽﾁｯｸの桿状体、棒及び型(表面加工の有無は問わないが、表面以外の部分は加工されていないもの)","583"]
[null,"和歌山県",30,"Wakayama",null,"591_殺虫剤、殺鼠剤、殺菌剤、除草剤、発芽防止剤製品及び植物生長調節剤、消毒剤並びにこれらの類似製品(小売用に包装されたもの又は調製品若しくは商品の形態になったもの)(例：硫黄処理された帯、灯心及び蝋燭並びに蠅採り紙)","591"]
[null,"鳥取県",31,"Tottori",null,"592_澱粉、ｲﾇﾘﾝ及び小麦ｸﾞﾙﾃﾝ；ｱﾙﾌﾞﾐﾉｲﾄﾞ物質；にかわ","592"]
[null,"島根県",32,"Shimane",null,"593_爆発物及び火工品","593"]
[null,"岡山県",33,"Okayama",null,"597_鉱油類への添加物(調製されたもの)；液圧伝導装置用の液体(調製されたもの)；不凍液調製品及び除氷・防氷液調製品；潤滑剤調製品","597"]
[null,"広島県",34,"Hiroshima",null,"598_その他の各種化学製品","598"]
[null,"山口県",35,"Yamaguchi",null,"599_その他(化学製品以外)","599"]
[null,"徳島県",36,"Tokushima"]
[null,"香川県",37,"Kagawa"]
[null,"愛媛県",38,"Ehime"]
[null,"高知県",39,"Kochi"]
[null,"福岡県",40,"Fukuoka"]
[null,"佐賀県",41,"Saga"]
[null,"長崎県",42,"Nagasaki"]
[null,"熊本県",43,"Kumamoto"]
[null,"大分県",44,"Oita"]
[null,"宮崎県",45,"Miyazaki"]
[null,"鹿児島県",46,"Kagoshima"]
[null,"沖縄県",47,"Okinawa"]

{"sheet":"eAppData","index":5,"n_rows":19,"n_cols":52,"rows_kept":19,"cut":false,"hidden":true,"merged":[]}
["事業所マスタ",1,"届出のみ判定",{"$f":"IF(OR(AND(届出・申告書の作成!$C$23=\"〇\", 届出・申告書の作成!$V$31=\"いいえ\"), AND(届出・申告書の作成!$C$25=\"〇\", 届出・申告書の作成!$V$43=\"いいえ\")),FALSE,TRUE)","v":false},null,null,"配布Version",2,"様式種別","21","←配布Version、様式種別はR5年改修時追加項目"]
["No","AM018_PlantSiteCode","AM018_PlantSiteName","AM018_ProvinceCode","AM018_Province","AM018_City","AM018_Address","AM018_Report_Post_1","AM018_Report_Address_1","AM018_Report_Department_1","AM018_Report_Position_1","AM018_Report_Person_1","AM018_Report_Tel_1","AM018_Report_Fax_1","AM018_Report_Email_1","AM018_Report_Post_2","AM018_Report_Address_2","AM018_Report_Department_2","AM018_Report_Position_2","AM018_Report_Person_2","AM018_Report_Tel_2","AM018_Report_Fax_2","AM018_Report_Email_2","AM018_Report_Post_3","AM018_Report_Address_3","AM018_Report_Department_3","AM018_Report_Position_3","AM018_Report_Person_3","AM018_Report_Tel_3","AM018_Report_Fax_3","AM018_Report_Email_3","AM018_Inspectiont_Address_1","AM018_Inspectiont_Department_1","AM018_Inspectiont_Position_1","AM018_Inspectiont_Person_1","AM018_Inspectiont_Tel_1","AM018_Inspectiont_Fax_1","AM018_Inspectiont_Email_1","AM018_Inspectiont_Address_2","AM018_Inspectiont_Department_2","AM018_Inspectiont_Position_2","AM018_Inspectiont_Person_2","AM018_Inspectiont_Tel_2","AM018_Inspectiont_Fax_2","AM018_Inspectiont_Email_2","AM018_Inspectiont_Address_3","AM018_Inspectiont_Department_3","AM018_Inspectiont_Position_3","AM018_Inspectiont_Person_3","AM018_Inspectiont_Tel_3","AM018_Inspectiont_Fax_3","AM018_Inspectiont_Email_3"]
[1,{"$f":"ETL!$E$61","v":""},{"$f":"ETL!$E$59","v":""},{"$f":"ETL!$H$62","v":""},{"$f":"ETL!$E$62","v":""},{"$f":"ETL!$E$64","v":""},{"$f":"ETL!$E$66","v":""},{"$f":"ETL!$E$13","v":""},{"$f":"ETL!$E$14","v":""},{"$f":"ETL!$E$15","v":""},{"$f":"ETL!$E$16","v":""},{"$f":"ETL!$E$12","v":""},{"$f":"ETL!$E$17","v":""},{"$f":"ETL!$E$18","v":""},{"$f":"ETL!$E$19","v":""},{"$f":"ETL!$E$21","v":""},{"$f":"ETL!$E$22","v":""},{"$f":"ETL!$E$23","v":""},{"$f":"ETL!$E$24","v":""},{"$f":"ETL!$E$20","v":""},{"$f":"ETL!$E$25","v":""},{"$f":"ETL!$E$26","v":""},{"$f":"ETL!$E$27","v":""},{"$f":"ETL!$E$29","v":""},{"$f":"ETL!$E$30","v":""},{"$f":"ETL!$E$31","v":""},{"$f":"ETL!$E$32","v":""},{"$f":"ETL!$E$28","v":""},{"$f":"ETL!$E$33","v":""},{"$f":"ETL!$E$34","v":""},{"$f":"ETL!$E$35","v":""},{"$f":"IF($B$17<=0,\"\",ETL!$E$37)","v":""},{"$f":"IF($B$17<=0,\"\",ETL!$E$38)","v":""},{"$f":"IF($B$17<=0,\"\",ETL!$E$39)","v":""},{"$f":"IF($B$17<=0,\"\",ETL!$E$36)","v":""},{"$f":"IF($B$17<=0,\"\",ETL!$E$40)","v":""},{"$f":"IF($B$17<=0,\"\",ETL!$E$41)","v":""},{"$f":"IF($B$17<=0,\"\",ETL!$E$42)","v":""},{"$f":"IF($B$17<=0,\"\",ETL!$E$44)","v":""},{"$f":"IF($B$17<=0,\"\",ETL!$E$45)","v":""},{"$f":"IF($B$17<=0,\"\",ETL!$E$46)","v":""},{"$f":"IF($B$17<=0,\"\",ETL!$E$43)","v":""},{"$f":"IF($B$17<=0,\"\",ETL!$E$47)","v":""},{"$f":"IF($B$17<=0,\"\",ETL!$E$48)","v":""},{"$f":"IF($B$17<=0,\"\",ETL!$E$49)","v":""},{"$f":"IF($B$17<=0,\"\",ETL!$E$51)","v":""},{"$f":"IF($B$17<=0,\"\",ETL!$E$52)","v":""},{"$f":"IF($B$17<=0,\"\",ETL!$E$53)","v":""},{"$f":"IF($B$17<=0,\"\",ETL!$E$50)","v":""},{"$f":"IF($B$17<=0,\"\",ETL!$E$54)","v":""},{"$f":"IF($B$17<=0,\"\",ETL!$E$55)","v":""},{"$f":"IF($B$17<=0,\"\",ETL!$E$56)","v":""}]
["↓セルA５はVBAのバージョン管理処理にて使用しているため修正時注意する"]
["DOC備考情報",1]
["No","AT024_RelatesYear","AT024_PlantSiteCode","AT024_Remark"]
[1,{"$f":"ETL!$E$6","v":0},{"$f":"ETL!$E$61","v":""},{"$f":"ETL!$E$77","v":""}]
[]
["様式21",{"$f":"IF(ETL!E80=\"〇\",1,0)","v":1}]
["No","AT006_RelatesYear","AT006_ReportDay","AT006_OwnerName","AT006_OwnerAddress","AT006_PlantSiteName","AT006_PlantSiteCode","AT006_PlantSiteLocation","AT006_NumberPlants","AT006_NumberPlantsValue","AT006_AmountType","AT006_ReportOnlyFlag","AT006_ReportOnlyReason"]
[1,{"$f":"ETL!$B111","v":0},{"$f":"ETL!$B113","v":{"$error":"#NUM!"}},{"$f":"ETL!$B114","v":""},{"$f":"ETL!$B115","v":""},{"$f":"ETL!$B116","v":""},{"$f":"ETL!$B117","v":""},{"$f":"ETL!$B118","v":""},{"$f":"ETL!$H82","v":""},{"$f":"ETL!$I82","v":0},{"$f":"ETL!$I83","v":""},{"$f":"ETL!$I84","v":"0"},{"$f":"ETL!$I85","v":"0"}]
[]
["様式22",{"$f":"IF(ETL!E81=\"〇\",1,0)","v":1}]
["No","AT007_RelatesYear","AT007_ReportDay","AT007_OwnerName","AT007_OwnerAddress","AT007_PlantSiteName","AT007_PlantSiteCode","AT007_PlantSiteLocation","AT007_NumberUnder30TPlants","AT007_NumberUnder30TPlantsValue","AT007_NumberUnder200TPlants","AT007_NumberUnder200TPlantsValue","AT007_Number200To1KTPlants","AT007_Number200To1KTPlantsValue","AT007_Number1KTo10KTPlants","AT007_Number1KTo10KTPlantsValue","AT007_NumberOver10KTPlants","AT007_NumberOver10KTPlantsValue","AT007_ReportOnlyFlag","AT007_ReportOnlyReason"]
[1,{"$f":"ETL!$C111","v":0},{"$f":"ETL!$C113","v":{"$error":"#NUM!"}},{"$f":"ETL!$C114","v":""},{"$f":"ETL!$C115","v":""},{"$f":"ETL!$C116","v":""},{"$f":"ETL!$C117","v":""},{"$f":"ETL!$C118","v":""},{"$f":"ETL!$H86","v":""},{"$f":"ETL!$L86","v":0},{"$f":"ETL!$J87","v":""},{"$f":"ETL!$L87","v":0},{"$f":"ETL!$H88","v":""},{"$f":"ETL!$L88","v":0},{"$f":"ETL!$H89","v":""},{"$f":"ETL!$L89","v":0},{"$f":"ETL!$H90","v":""},{"$f":"ETL!$L90","v":0},{"$f":"ETL!$I96","v":"0"},{"$f":"ETL!$I97","v":"0"}]
[]
["Form4.1",{"$f":"IF(ETL!A121>0,1,0)","v":1}]
["No","AT017_RelatesYear","AT017_ReportDay","AT017_PlantSiteOwner","AT017_PlantSiteName","AT017_PlantSiteCode","AT017_PlantSiteProvince","AT017_PlantSiteCity","AT017_PlantSiteAddress","AT017_PlantSitePreciseLocation","AT017_AggregateAmountProduction","AT017_NumberDOCPlants","AT017_NumberDOCPlantsValue","AT017_NumberPSFPlants","AT017_NumberPSFPlantsValue","AT017_NumberPSFPlantsUnder200Tonnes","AT017_NumberPSFPlantsUnder200TonnesValue","AT017_NumberPSFPlants200To1000Tonnes","AT017_NumberPSFPlants200To1000TonnesValue","AT017_NumberPSFPlants1000To10000Tonnes","AT017_NumberPSFPlants1000To10000TonnesValue","AT017_NumberPSFPlantsMore10000Tonnes","AT017_NumberPSFPlantsMore10000TonnesValue","AT017_More200TonnesPSF","AT017_PlantSiteAttachment","AT017_ProdGroupCode"]
[1,{"$f":"ETL!$E6","v":0},{"$f":"ETL!$H5","v":{"$error":"#NUM!"}},{"$f":"ETL!$E8","v":""},{"$f":"ETL!$E60","v":""},{"$f":"ETL!$E61","v":""},{"$f":"ETL!$E63","v":""},{"$f":"ETL!$E65","v":""},{"$f":"ETL!$E67","v":""},{"$f":"ETL!$H68","v":"0/0/0N 0/0/0E"},{"$f":"ETL!$Q83","v":"B31"},{"$f":"ETL!$J82","v":""},{"$f":"ETL!$K82","v":0},{"$f":"ETL!$O91","v":""},{"$f":"ETL!$P91","v":0},{"$f":"ETL!$M91","v":""},{"$f":"ETL!$N91","v":0},{"$f":"ETL!$M92","v":""},{"$f":"ETL!$N92","v":0},{"$f":"ETL!$M93","v":""},{"$f":"ETL!$N93","v":0},{"$f":"ETL!$M94","v":""},{"$f":"ETL!$N94","v":0},{"$f":"ETL!$M95","v":"N"},{"$f":"ETL!$E74","v":""},{"$f":"ETL!$I98","v":""}]

{"sheet":"【自動入力】様式第21","index":6,"n_rows":26,"n_cols":37,"rows_kept":26,"cut":false,"hidden":false,"merged":[[13,23,13,35],[5,26,5,36],[9,23,9,35],[2,1,2,36],[5,0,5,20],[8,1,8,23],[9,13,11,21],[11,36,11,37],[11,23,11,35],[18,1,18,18],[18,19,18,36],[13,13,13,21],[16,1,16,36],[25,5,25,36],[19,1,21,18],[19,19,19,33],[19,34,19,36],[20,19,20,33],[20,34,20,36],[21,19,21,33],[21,34,21,36],[22,1,22,18],[22,19,22,36],[17,1,17,18],[17,19,17,36]]}
["（別紙様式１）","様式第２１（第２２条関係）"]
[]
[null,{"$f":"\"製造実績届出書\"","v":"製造実績届出書"}]
[]
[]
[null,null,null,null,null,null,null,null,null,null,null,null,null,null,null,null,null,null,null,null,null,null,null,null,null,null,{"$f":"ETL!B105","v":{"$error":"#NUM!"}}]
[]
[]
[null,"経済産業大臣殿"]
[null,null,null,null,null,null,null,null,null,null,null,null,null,"氏名又は名称及び法人にあっては、その代表者の氏名",null,null,null,null,null,null,null,null,null,{"$f":"ETL!B106","v":""}]
[]
[null,null,null,null,null,null,null,null,null,null,null,null,null,null,null,null,null,null,null,null,null,null,null,{"$f":"ETL!B107","v":""},null,null,null,null,null,null,null,null,null,null,null,null,"印"]
[]
[null,null,null,null,null,null,null,null,null,null,null,null,null,"住所",null,null,null,null,null,null,null,null,null,{"$f":"ETL!B108","v":""}]
[]
[]
[null,"　化学兵器の禁止及び特定物質の規制等に関する法律第２９条第１項の規定により次のとおり届け出ます。"]
[null,{"$f":"\"製造をした事業所の名称\"","v":"製造をした事業所の名称"},null,null,null,null,null,null,null,null,null,null,null,null,null,null,null,null,null,{"$f":"ETL!B109","v":""}]
[null,{"$f":"\"製造をした事業所の所在地\"","v":"製造をした事業所の所在地"},null,null,null,null,null,null,null,null,null,null,null,null,null,null,null,null,null,{"$f":"ETL!B110","v":""}]
[null,"\n事業所において製造をした全ての有機化学物質の総量が属する区分（該当する区分に○をつけること。）",null,null,null,null,null,null,null,null,null,null,null,null,null,null,null,null,null,"1,000トン未満",null,null,null,null,null,null,null,null,null,null,null,null,null,null,{"$f":"ETL!K83","v":""}]
[null,null,null,null,null,null,null,null,null,null,null,null,null,null,null,null,null,null,null,"1,000トン以上10,000トン以下",null,null,null,null,null,null,null,null,null,null,null,null,null,null,{"$f":"ETL!M83","v":""}]
[null,null,null,null,null,null,null,null,null,null,null,null,null,null,null,null,null,null,null,"10,000トン超",null,null,null,null,null,null,null,null,null,null,null,null,null,null,{"$f":"ETL!O83","v":""}]
[null,"事業所内の有機化学物質の製造施設の数",null,null,null,null,null,null,null,null,null,null,null,null,null,null,null,null,null,{"$f":"ETL!H82","v":""}]
[]
[null,"備考　",null,1,null,"用紙の大きさは、日本産業規格Ａ４とすること。"]
[null,null,null,2,null,"当該事業所において特定有機化学物質を製造している場合には、それらを含めたものとして記入すること。"]

{"sheet":"【自動入力】様式第22","index":7,"n_rows":24,"n_cols":37,"rows_kept":24,"cut":false,"hidden":false,"merged":[[13,23,13,35],[5,26,5,36],[9,23,9,35],[2,1,2,36],[5,0,5,20],[8,1,8,23],[9,13,11,21],[11,36,11,37],[11,23,11,35],[18,1,18,18],[18,19,18,36],[13,13,13,21],[16,1,16,36],[25,5,25,36],[19,1,22,18],[19,19,19,33],[19,34,19,36],[20,19,20,33],[20,34,20,36],[21,19,21,33],[21,34,21,36],[22,19,22,33],[22,34,22,36],[17,1,17,18],[17,19,17,36]]}
["（別紙様式１）","様式第２２（第２３条関係）"]
[]
[null,{"$f":"\"製造実績届出書\"","v":"製造実績届出書"}]
[]
[]
[null,null,null,null,null,null,null,null,null,null,null,null,null,null,null,null,null,null,null,null,null,null,null,null,null,null,{"$f":"ETL!C105","v":{"$error":"#NUM!"}}]
[]
[]
[null,"経済産業大臣殿"]
[null,null,null,null,null,null,null,null,null,null,null,null,null,"氏名又は名称及び法人にあっては、その代表者の氏名",null,null,null,null,null,null,null,null,null,{"$f":"ETL!C106","v":""}]
[]
[null,null,null,null,null,null,null,null,null,null,null,null,null,null,null,null,null,null,null,null,null,null,null,{"$f":"ETL!C107","v":""},null,null,null,null,null,null,null,null,null,null,null,null,"印"]
[]
[null,null,null,null,null,null,null,null,null,null,null,null,null,"住所",null,null,null,null,null,null,null,null,null,{"$f":"ETL!C108","v":""}]
[]
[]
[null,"　化学兵器の禁止及び特定物質の規制等に関する法律第２９条第２項の規定により次のとおり届け出ます。"]
[null,{"$f":"\"製造をした事業所の名称\"","v":"製造をした事業所の名称"},null,null,null,null,null,null,null,null,null,null,null,null,null,null,null,null,null,{"$f":"ETL!C109","v":""}]
[null,{"$f":"\"製造をした事業所の所在地\"","v":"製造をした事業所の所在地"},null,null,null,null,null,null,null,null,null,null,null,null,null,null,null,null,null,{"$f":"ETL!C110","v":""}]
[null,"\n事業所において製造をした特定有機化学物質のその製造施設ごとの総量が属する区分\n（該当する区分に該当する製造施設の数を記入すること。）",null,null,null,null,null,null,null,null,null,null,null,null,null,null,null,null,null,"200トン未満（うち30トン未満）",null,null,null,null,null,null,null,null,null,null,null,null,null,null,{"$f":"ETL!J86","v":""}]
[null,null,null,null,null,null,null,null,null,null,null,null,null,null,null,null,null,null,null,"200トン以上1,000トン未満",null,null,null,null,null,null,null,null,null,null,null,null,null,null,{"$f":"ETL!H88","v":""}]
[null,null,null,null,null,null,null,null,null,null,null,null,null,null,null,null,null,null,null,"1,000トン以上10,000トン以下",null,null,null,null,null,null,null,null,null,null,null,null,null,null,{"$f":"ETL!H89","v":""}]
[null,null,null,null,null,null,null,null,null,null,null,null,null,null,null,null,null,null,null,"10,000トン超",null,null,null,null,null,null,null,null,null,null,null,null,null,null,{"$f":"ETL!H90","v":""}]
[null,"備考　",null,null,null,"用紙の大きさは、日本産業規格Ａ４とすること。"]

{"sheet":"【自動入力】Form4.1","index":8,"n_rows":61,"n_cols":45,"rows_kept":61,"cut":false,"hidden":false,"merged":[[15,0,15,45],[0,19,0,33],[14,0,14,10],[14,11,14,45],[6,0,6,45],[7,0,7,16],[7,17,7,24],[7,25,7,45],[8,0,8,45],[9,0,9,10],[9,11,9,45],[5,0,5,45],[0,34,0,37],[0,38,0,39],[0,40,0,41],[0,42,0,43],[0,44,0,45],[1,0,1,45],[2,0,2,45],[3,0,3,45],[4,0,4,45],[10,0,10,45],[11,0,11,45],[12,0,12,10],[12,11,12,45],[13,0,13,45],[16,0,16,10],[16,11,16,45],[17,0,17,45],[18,0,18,10],[18,11,18,22],[18,23,18,45],[20,0,20,45],[22,6,22,7],[22,10,22,11],[22,14,22,17],[22,29,22,31],[22,34,22,35],[22,38,22,41],[31,0,31,45],[32,0,32,45],[33,0,33,45],[34,0,34,45],[23,0,23,45],[25,0,26,10],[25,11,26,45],[28,0,29,45],[30,19,30,43],[37,32,37,34],[39,0,40,45],[56,33,56,34],[56,35,56,45],[43,0,43,45],[44,0,44,45],[45,0,45,45],[46,33,46,34],[42,0,42,45],[37,0,37,30],[37,35,37,45],[38,0,38,45],[41,0,41,32],[46,35,46,45],[35,0,36,45],[55,0,55,45],[61,0,61,45],[57,0,57,45],[58,33,58,34],[58,35,58,45],[59,0,59,45],[60,33,60,34],[60,35,60,45],[47,0,47,45],[48,2,48,45],[53,0,53,45],[54,33,54,34],[54,35,54,45],[41,33,41,34],[41,35,41,45]]}
[null,null,null,null,null,null,null,null,null,null,null,null,null,null,null,null,null,null,null,"届出日 （西暦：ccyy-mm-dd）",null,null,null,null,null,null,null,null,null,null,null,null,null,null,{"$f":"ETL!E3","v":0},null,null,null,"－",null,{"$f":"ETL!E4","v":0},null,"－",null,{"$f":"ETL!E5","v":0}]
[]
["Form 4.1: Declaration of \"Other Chemical Production Facilities\" "]
[]
["Ensure to complete one form for each \"other chemical production facility\"."]
[]
[]
["Plant Site Code：",null,null,null,null,null,null,null,null,null,null,null,null,null,null,null,null,{"$f":"ETL!E61","v":""}]
[]
["Name of Plant Site:",null,null,null,null,null,null,null,null,null,null,{"$f":"ETL!E60","v":""}]
[]
["The name of the owner, company, or enterprise operating the plant site:"]
[null,null,null,null,null,null,null,null,null,null,null,{"$f":"ETL!E8","v":""}]
[]
["Street address:",null,null,null,null,null,null,null,null,null,null,{"$f":"ETL!E67","v":""}]
[]
["City/district：",null,null,null,null,null,null,null,null,null,null,{"$f":"ETL!E65","v":""}]
[]
["Province/state/other： ",null,null,null,null,null,null,null,null,null,null,{"$f":"ETL!E63","v":""}]
[]
["Latitude, longitude/Precise location:"]
[]
[null,"Latitude:",null,null,null,null,{"$f":"ETL!E68","v":0},null,"／",null,{"$f":"ETL!E69","v":0},null,"／",null,{"$f":"ETL!E70","v":0},null,null,null,null,"N",null,null,null,"Longitude:",null,null,null,null,null,{"$f":"ETL!E71","v":0},null,null,"／",null,{"$f":"ETL!E72","v":0},null,"／",null,{"$f":"ETL!E73","v":0},null,null,null,null,"E"]
[]
["Identify the attachment for additional information on this plant site (if available):"]
[null,null,null,null,null,null,null,null,null,null,null,{"$f":"ETL!E74","v":""}]
[]
[]
["Use product group codes (see Appendix 4) to describe main activities of the plant site that make the plant site declarable, in terms of product group(s):"]
[]
[null,null,null,null,null,null,null,null,null,null,null,null,null,null,null,null,null,null,null,{"$f":"ETL!O98","v":""}]
[]
[]
[]
[]
["Aggregate amount of production of the unscheduled discrete organic chemicals, including any amount of PSF-chemicals (use Codes of Production Range, see Appendix 7):"]
[]
[null,null,null,null,null,null,null,null,null,null,null,null,null,null,null,null,null,null,null,null,null,null,null,null,null,null,null,null,null,null,null,null,{"$f":"ETL!Q83","v":"B31"}]
[]
["Approximate number of plants (including PSF-plants) producing unscheduled discrete organic chemicals\nat the plant site:"]
[]
[null,null,null,null,null,null,null,null,null,null,null,null,null,null,null,null,null,null,null,null,null,null,null,null,null,null,null,null,null,null,null,null,null,{"$f":"ETL!J82","v":""}]
[]
[]
["For plant sites comprising one of more plants producing more than 30 tonnes of an infividual PSF-chemical"]
[]
[null,null,"Number of PSF-plants at plant site:",null,null,null,null,null,null,null,null,null,null,null,null,null,null,null,null,null,null,null,null,null,null,null,null,null,null,null,null,null,null,{"$f":"ETL!O91","v":""}]
[]
[null,null,"Has this plant site during the previous calendar year produced more than 200 tonnes of an individual PSF-chemical?"]
[]
[null,null,null,null,null,null,null,null,null,null,null,null,null,null,null,null,null,null,null,null,null,null,null,null,null,null,null,null,null,null,null,null,null,null,"Yes",null,{"$f":"ETL!J95","v":""},null,null,null,"No",null,{"$f":"ETL!L95","v":""}]
[]
[null,null,"Aggregate amount of production of PSF-chemicals produced by each PSF-plant"]
[]
[null,null,null,null,"Number of plants producing 30 to 200 tonnes of PSF:",null,null,null,null,null,null,null,null,null,null,null,null,null,null,null,null,null,null,null,null,null,null,null,null,null,null,null,null,{"$f":"ETL!M91","v":""}]
[]
[null,null,null,null,"Number of plants producing 200 to 1,000 tonnes of PSF:",null,null,null,null,null,null,null,null,null,null,null,null,null,null,null,null,null,null,null,null,null,null,null,null,null,null,null,null,{"$f":"ETL!M92","v":""}]
[]
[null,null,null,null,"Number of plants producing 1,000 to 10,000 tonnes of PSF:",null,null,null,null,null,null,null,null,null,null,null,null,null,null,null,null,null,null,null,null,null,null,null,null,null,null,null,null,{"$f":"ETL!M93","v":""}]
[]
[null,null,null,null,"Number of plants producing more than 10,000 tonnes of PSF:",null,null,null,null,null,null,null,null,null,null,null,null,null,null,null,null,null,null,null,null,null,null,null,null,null,null,null,null,{"$f":"ETL!M94","v":""}]